Cogmind - Beta 14 @@@ ROGUE MODE // 2025.03.26 @ 21:14:44 Player: Juan Result: Self-destructed Performance ------------- Evolutions (2) 1000 Regions Visited (4) 800 Robots Destroyed (9) 45 Value Destroyed (170) 170 Prototype IDs (0) 0 Alien Tech Used (0) 0 Bonus (0) 0 TOTAL SCORE: 2015 Bonus ------- None Cogmind --------- Core Integrity 375/550 Matter 230/300 Energy 100/100 System Corruption 2% Temperature Warm (101) Movement Treading (170) Location -8/Materials Parts ------- > --- POWER (2) -------- (None) > --- PROPULSION (4) --- Armored Treads > --- UTILITY (3) ------ (None) > --- WEAPON (2) ------- (None) > --- INVENTORY (5) ---- Actuator Array Heavy Explosive Trap Heavy Explosive Trap Peak State ------------ > --- POWER ------------ Ion Engine > --- PROPULSION ------- Flight Unit Flight Unit Flight Unit > --- UTILITY ---------- Actuator Array ECM Suite > --- WEAPON ----------- Light Assault Rifle Heavy Battle Rifle > --- INVENTORY -------- Assault Rifle Heavy Explosive Trap Heavy Explosive Trap Heavy Explosive Trap [Rating: 13] Favorites ----------- Power Ion Engine Engine Ion Engine Propulsion Flight Unit Treads Armored Treads Wheel Compact Wheel Flight Unit Flight Unit Utility ECM Suite Device ECM Suite Storage Small Storage Unit Protection Power Shielding Weapon Assault Rifle Ballistic Gun Assault Rifle Slashing Weapon Axe Build | -11 -10 -10 -9 -8 ------- Run | Yrd Mat Min Mat Mat Slots Evolved 4 | . . . 2 2 Power 1 | . . . . 1 Propulsion 2 | . . . 1 1 Utility 1 | . . . 1 . Weapon . | . . . . . Parts Attached 31 | 8 1 12 5 5 Power 4 | 3 . 1 . . Engine 4 | 3 . 1 . . Core . | . . . . . Reactor . | . . . . . Propulsion 9 | 2 . 4 2 1 Treads 1 | . . . . 1 Leg . | . . . . . Wheel 2 | 2 . . . . Hover . | . . . . . Flight 6 | . . 4 2 . Utility 4 | 1 1 . 1 1 Device 2 | . . . 1 1 Storage 1 | 1 . . . . Processor . | . . . . . Hackware . | . . . . . Protection 1 | . 1 . . . Artifact . | . . . . . Weapon 14 | 2 . 7 2 3 Energy Gun . | . . . . . Energy Cannon . | . . . . . Ballistic Gun 13 | 2 . 7 2 2 Ballistic Cannon . | . . . . . Launcher . | . . . . . Special Weapon . | . . . . . Impact Weapon . | . . . . . Slashing Weapon 1 | . . . . 1 Piercing Weapon . | . . . . . Special Melee Weapon . | . . . . . Unidentified Prototypes . | . . . . . Parts Lost 9 | . . 1 . 8 Power 1 | . . . . 1 Propulsion 4 | . . 1 . 3 Utility 1 | . . . . 1 Weapon 3 | . . . . 3 Highest Loss Streak 6 | . . 1 . 6 To Critical Strikes . | . . . . . Average Slot Usage (%) 72 | . 96 72 74 58 Engine 12 | . 14 14 11 8 Wheel 5 | . 28 2 . . Flight 21 | . . 24 33 22 Device 3 | . . . 8 8 Storage 2 | . 14 1 . . Protection 2 | . 10 1 . . Ballistic Gun 24 | . 28 26 22 17 Peak Build Rating 13 | 6 7 8 10 13 Average Rating 6 | 4 6 5 9 9 On Entrance 5 | . 6 7 5 10 Naked Turns . | . . . . . Heaviest Build 14 | 14 13 13 12 12 Greatest Support 26 | 26 26 26 12 12 Greatest Overweight (x) 4 | . . 4 . 1 Average Overweight (x) . | . . . . . Largest Inventory Capacity 8 | 8 8 8 5 5 Average Capacity 5 | 7 8 5 5 5 Most Carried 8 | 6 7 8 4 5 Average Carried 4 | 3 6 5 4 4 Final Capacity 8 | 8 8 5 5 5 Final Carried 7 | 6 7 5 4 3 Class Distribution -------------------- 100% | Mutant Dominant Class ---------------- Mutant | -10/Materials Mutant | -10/Mines Mutant | -9/Materials Mutant | -8/Materials Resources | -11 -10 -10 -9 -8 ----------- Run | Yrd Mat Min Mat Mat Matter Collected 557 | 221 . 252 84 . Remotely . | . . . . . Salvage Created 241 | . . 194 . 47 Parts 17 | . . 14 . 3 Haulers Intercepted . | . . . . . Recyclers Shooed . | . . . . . Parts Field Recycled . | . . . . . Retrieved Matter . | . . . . . Parts Self-Destructed . | . . . . . Prevented . | . . . . . Kills | -11 -10 -10 -9 -8 ------- Run | Yrd Mat Min Mat Mat Combat Hostiles Destroyed 8 | . . 7 . 1 Guns 8 | . . 7 . 1 Classes Destroyed 3 | . . 3 . . Recycler 1 | . . 1 . . Swarmer 6 | . . 6 . . Grunt 2 | . . 1 . 1 Best Kill Streak 4 | . . 4 . 1 Combat Bots Only 3 | . . 3 . 1 Max Kills in Single Turn 2 | . . 2 . 1 Gunslinging . | . . . . . Exploded . | . . . . . Melee . | . . . . . Uniques/NPCs Destroyed . | . . . . . Combat | -11 -10 -10 -9 -8 -------- Run | Yrd Mat Min Mat Mat Hostile Shots Fired 126 | . 1 49 7 69 Missed 44 | . . 15 5 24 Damage Taken 1064 | . 16 308 29 711 Core 267 | . . 77 15 175 Absorbed by Shields . | . . . . . Redirected to Shielding 3 | . . 3 . . Core Remaining (%) 88 | 100 . 69 96 . Volleys Fired 34 | . 2 18 1 13 Largest 2 | . 2 2 2 2 Hottest 53 | . 40 40 53 53 Shots Fired 62 | . 4 36 2 20 Gun 62 | . 4 36 2 20 Cannon . | . . . . . Launcher . | . . . . . Special . | . . . . . Kinetic 62 | . 4 36 2 20 Thermal . | . . . . . Explosive . | . . . . . Electromagnetic . | . . . . . Robot Hit Streak 5 | . 1 5 3 5 Robot Miss Streak 9 | . 1 4 1 9 Penetration Max . | . . . . . Secondary Targets 1 | . . 1 . . Max Gunslinging Chain 1 | . . 1 . . Shots Hit Robots 30 | . 2 17 1 10 Core Hits 15 | . . 11 1 3 Critical Kills . | . . . . . Critical Parts Destroyed . | . . . . . Critical Strikes . | . . . . . Melee Attacks . | . . . . . Impact . | . . . . . Slashing . | . . . . . Piercing . | . . . . . Sneak Attacks . | . . . . . Combat Hostiles . | . . . . . Follow-up Attacks . | . . . . . Damage Inflicted 501 | . 29 215 7 250 Guns 501 | . 29 215 7 250 Cannons . | . . . . . Explosions . | . . . . . Melee . | . . . . . Ramming . | . . . . . Kinetic 501 | . 29 215 7 250 Thermal . | . . . . . Explosive . | . . . . . Electromagnetic . | . . . . . Impact . | . . . . . Slashing . | . . . . . Piercing . | . . . . . Highest Corruption 2 | . . . . 2 Average Corruption 2 | . . . . 2 Corruption Purged . | . . . . . Corruption Blocked . | . . . . . Effects 1 | . . . . 1 Heat Flow Errors 1 | . . . . 1 Overload Shots . | . . . . . Overflow Damage . | . . . . . Projectiles . | . . . . . Explosions . | . . . . . Melee . | . . . . . Knockbacks . | . . . . . Impact . | . . . . . Kinetic . | . . . . . Secondary . | . . . . . Self-Inflicted Damage . | . . . . . Shots . | . . . . . Rammed . | . . . . . Targets Rammed . | . . . . . Kicked . | . . . . . Crushed . | . . . . . Highest Temperature 178 | . . 26 18 178 Average Temperature 40 | . . 6 15 68 Received Heat Transfer 492 | . 9 42 18 423 Siege Activations . | . . . . . Robots Corrupted . | . . . . . Combat Hostiles . | . . . . . Parts Fried . | . . . . . Impact Corruptions . | . . . . . Robots Melted . | . . . . . Combat Hostiles . | . . . . . Parts Melted . | . . . . . Heat Transferred . | . . . . . Parts Sabotaged . | . . . . . Parts Stolen . | . . . . . Parts Stripped . | . . . . . Power Chain Reactions . | . . . . . Alert | -11 -10 -10 -9 -8 ------- Run | Yrd Mat Min Mat Mat Peak Influence 252 | . 46 252 110 136 Initial 46 | . . 17 20 46 Average 111 | . 16 178 55 89 Maximum Alert Level 1 | . . 1 . . Low Security (%) 79 | 100 100 55 100 100 Level 1 20 | . . 44 . . Level 2 . | . . . . . Level 3 . | . . . . . Level 4 . | . . . . . Level 5 . | . . . . . High Security . | . . . . . Max Security . | . . . . . Squads Dispatched 5 | . . . 1 4 Investigation 2 | . . . . 2 Extermination . | . . . . . Reinforcement 3 | . . . 1 2 Assault . | . . . . . Garrison . | . . . . . Intercept . | . . . . . Searches Triggered . | . . . . . Construction Impeded . | . . . . . Haulers Reinforced . | . . . . . Active Scanning Responses . | . . . . . Cargo Convoy Interrupts . | . . . . . Stealth | -11 -10 -10 -9 -8 --------- Run | Yrd Mat Min Mat Mat Distress Signals 2 | . . . 2 . Communications Jammed . | . . . . . Distress Signals . | . . . . . Times Spotted 49 | . 3 11 10 25 Peak Tracking Total 9 | . 3 3 9 8 Tactical Retreats 10 | . . 2 3 5 Traps | -11 -10 -10 -9 -8 ------- Run | Yrd Mat Min Mat Mat Traps Triggered 1 | . . . . 1 Indirectly . | . . . . . Trap Hack Attempts . | . . . . . Triggered . | . . . . . Disarmed . | . . . . . Reprogrammed . | . . . . . Reused 2 | . . 1 . 1 Traps Extracted . | . . . . . Installed 2 | . . 1 . 1 Triggered 2 | . . 1 . 1 Most Traps Carried 3 | . . 3 3 3 Machines | -11 -10 -10 -9 -8 ---------- Run | Yrd Mat Min Mat Mat Machines Disabled 1 | . . . . 1 Max in Single Turn 1 | . . . . 1 Machines Repaired . | . . . . . Machines Dismantled . | . . . . . Machines Sabotaged . | . . . . . Overloaded Fab Kills . | . . . . . Hacking | -11 -10 -10 -9 -8 --------- Run | Yrd Mat Min Mat Mat Machines Accessed 12 | . 3 . 3 6 Terminals 9 | . 2 . 2 5 Fabricators . | . . . . . Repair Stations . | . . . . . Recycling Units 2 | . 1 . . 1 Scanalyzers 1 | . . . 1 . Garrison Access . | . . . . . Total Hacks 37 | . 12 . 9 16 Successful 18 | . 4 . 5 9 Failed 19 | . 8 . 4 7 Catastrophic 1 | . . . 1 . Database Lockouts . | . . . . . Manual 5 | . . . 3 2 Terminals 26 | . 7 . 4 15 Fabricators . | . . . . . Repair Stations . | . . . . . Recycling Units 6 | . 5 . . 1 Scanalyzers 5 | . . . 5 . Garrison Access . | . . . . . Terminal Hacks 12 | . 3 . 1 8 Record 6 | . . . . 6 Robot Analysis 1 | . . . . 1 Terminal Index 1 | . . . 1 . Locate Traps 1 | . 1 . . . Transport Status 1 | . 1 . . . Recall Investigation 1 | . 1 . . . Hauler Manifests 1 | . . . . 1 Fabricator Hacks . | . . . . . Repair Station Hacks . | . . . . . Recycling Unit Hacks 2 | . 1 . . 1 Report Inventory 2 | . 1 . . 1 Scanalyzer 4 | . . . 4 . Insert Component 2 | . . . 2 . Analyze 2 | . . . 2 . Garrison Access Hacks . | . . . . . Unauthorized Hacks . | . . . . . Terminals . | . . . . . Fabricators . | . . . . . Repair Stations . | . . . . . Recycling Units . | . . . . . Scanalyzers . | . . . . . Garrison Access . | . . . . . Data Cores Recovered . | . . . . . Used . | . . . . . Hacking Detections 9 | . 3 . 1 5 Full Trace Events 4 | . 1 . . 3 Feedback Events . | . . . . . Feedback Blocked . | . . . . . Robot Schematics Acquired . | . . . . . Robots Built . | . . . . . Authchips . | . . . . . Time . | . . . . . Total Robot Build Rating . | . . . . . Part Schematics Acquired 2 | . . . 2 . Parts Built . | . . . . . Authchips . | . . . . . Time . | . . . . . Total Part Build Rating . | . . . . . Parts Repaired . | . . . . . Time . | . . . . . Parts Recycled . | . . . . . Recycled Matter . | . . . . . Retrieved Matter . | . . . . . Retrieved Components . | . . . . . Parts Scanalyzed 2 | . . . 2 . Part Schematics Acquired 2 | . . . 2 . Parts Damaged . | . . . . . Bothacking | -11 -10 -10 -9 -8 ------------ Run | Yrd Mat Min Mat Mat Used RIF Installer . | . . . . . Robots Hacked . | . . . . . Non-combat . | . . . . . Combat . | . . . . . Robot Hacks Applied . | . . . . . Relay Couplers Released . | . . . . . Fabnet Peak Effective % . | . . . . . Robots Rewired . | . . . . . Allies Hacked . | . . . . . Hacks Repelled . | . . . . . Allies | -11 -10 -10 -9 -8 -------- Run | Yrd Mat Min Mat Mat Total Allies . | . . . . . Largest Group . | . . . . . Highest-Rated Group . | . . . . . Highest-Rated Ally . | . . . . . Total Orders . | . . . . . Ally Attacks . | . . . . . Total Damage . | . . . . . Kills . | . . . . . Allies Corrupted . | . . . . . Allies Melted . | . . . . . Intel | -11 -10 -10 -9 -8 ------- Run | Yrd Mat Min Mat Mat Robot Analysis Total 1 | . . . . 1 Derelict Logs Recovered . | . . . . . Drone Launches . | . . . . . Drone Recoveries . | . . . . . Exploration | -11 -10 -10 -9 -8 ------------- Run | Yrd Mat Min Mat Mat Turns Passed 875 | 64 115 408 87 201 Spaces Moved 1215 | 52 118 548 228 269 Core 3 | 2 . 1 . . Treads . | . . . . . Legs . | . . . . . Wheels 182 | 50 118 14 . . Hover . | . . . . . Flight 1030 | . . 533 228 269 Fastest Speed 34 | 50 90 37 34 34 Average Speed 50 | 89 90 44 34 49 Slowest Speed 280 | 100 90 280 34 117 Overloaded Moves . | . . . . . Propulsion Burnouts . | . . . . . Robots Hopped 8 | . . 5 . 3 Cave-ins Triggered . | . . . . . Exploration Rate (%) 31 | 4 32 73 28 22 Regions Visited 4 Branch Regions 1 Pre-discovered Areas 1 | . . 1 . . Known Exits Taken . | . . . . . Unknown Exits Taken 4 | 1 1 1 1 . Scrap Searched . | . . . . . Spaces Dug . | . . . . . Terrain Destroyed 1 | . . . . 1 Melee . | . . . . . Projectile 1 | . . . . 1 AOE . | . . . . . Terrain Rammed . | . . . . . Walls Destroyed . | . . . . . Machines Disabled . | . . . . . Actions | -11 -10 -10 -9 -8 --------- Run | Yrd Mat Min Mat Mat Total 1414 | 65 122 679 234 314 Wait 97 | . . 72 . 25 Move 1196 | 51 117 537 227 264 Hop 7 | . . 5 . 2 Pick Up 19 | 6 2 11 . . Fast Attach 18 | 6 . 7 1 4 Attach 5 | . 1 1 2 1 Detach 4 | . . 2 1 1 Swap 8 | 2 . 4 2 . Drop 24 | . . 21 . 3 Fire 34 | . 2 18 1 13 Melee . | . . . . . Ram . | . . . . . Kick . | . . . . . Crush . | . . . . . Escape Stasis . | . . . . . Rewire . | . . . . . Trap 2 | . . 1 . 1 Miscellaneous . | . . . . . Route ------- -11/Scrapyard -10/Materials -10/Mines -9/Materials -8/Materials History --------- Turn | Location | Event 19 | -11/Scrapyard | Discovered new exit (range 16) 65 | -11/Scrapyard | Entered Materials 141 | -10/Materials | Discovered new exit (range 14) 180 | -10/Materials | Entered Mines 258 | -10/Mines | Found a hidden stash of uninstalled traps 320 | -10/Mines | Build established: Mutant 522 | -10/Mines | A weapon hastily lodged in a ceiling crevice suddenly fell to the ground 564 | -10/Mines | Discovered new exit (range 9) 565 | -10/Mines | Learned location of Storage (-8) 588 | -10/Mines | Entered Materials 588 | -9/Materials | Evolved 2 slots: Propulsion x1, Utility x1 673 | -9/Materials | Discovered new exit (range 9) 675 | -9/Materials | Entered another Materials area 675 | -8/Materials | Evolved 2 slots: Power x1, Propulsion x1 876 | -8/Materials | Self-destructed Last Messages --------------- 00844_ G-47 Trooper destroyed. 00848_ G-47 Trooper IFF system glitched. 00849_ K-01 Serf collects debris. 00850_ Destroyed Aluminum Leg. 00852_ G-47 Trooper misfires. 00856_ R-06 Scavenger collects Particle Gun. 00859_ Material Compactor disabled. 00859_ R-06 Scavenger collects Aluminum Leg. 00860_ Critical hit (Burn: +37). 00864_ R-06 Scavenger collects Aluminum Leg. 00867_ Assault Rifle destroyed. 00868_ Flight Unit destroyed. 00869_ ECM Suite destroyed. 00869_ Ion Engine destroyed. 00871_ Flight Unit destroyed. 00872_ U-05 Engineer builds a Wall. 00874_ Destroyed Imp. Heat Sink. 00875_ Hvy. Battle Rifle destroyed. 00875_ G-47 Trooper IFF system glitched. 00875_ G-47 Trooper destroyed. Map ----- +----------------------------------------------------+ | ?????????????????????????????????????????????????? | | ?????????????????????????????????????????????????? | | ?????????????????????????????????????????????????? | | ?????????????????????????????????????????????????? | | ?????????????????????????????????????????????????? | | ?????????????????????????????????????????????????? | | ???????????????????????????????? ??????????????? | | ???????????????????????????????# ?????????????? | | ???????????????????????????????# ?????????????? | | ???????????????????????????????# ###########???? | | ???????????????????????????????# ## #???? | | ???????????????????????????????# ## #???? | | ???????????????????????????????# ## """ #???? | | ???????????????????????????????# ## """"" #???? | | ???????????????????????????????# ## """"" #???? | | ???????????????????????????????# ## """"" #???? | | ??????????????????????########## ## """ #???? | | ??????????????????????# """ # ## #???? | | ??????????????????????# """"" # a## ##### | | ??????????????????????# """"" # #######+### | | ??????????????????????# """"" #g | | ??????????????????????# " %g | | ??????????????????????# g% # | | ??????????????????????# m# | | ??????????????????????#! g g# ############ | | ??????????????????????# @ g # # #### | | ??????????????????????########## + ##"" | | ???????????????????????????????# # ##"" | | ???????????????????????????????# ^# ##"T | | ???????????????????????????????# # ##"" | | ???????????????????????????????# ##########"" | | ??????????????###########?####?# #???######## | | ??????????????# #?#T"#?# #???# # | | ??????????????# ### "### #???# """ # | | ??????????????# # ##### """ / | | ??????????????# """"""" / +^ """ # | | ??????????????# """"""" # ##### # | | ??????????????# """"""" #+##+#######???# # | | ??????????????# """"""" # #?########+##### | | ??????????????# """"""" # #?# # ##### | | ??????????????########### #?# """ + | | ????????????????????????# #?# """ ########+# | | ????????????????????????# #?# """ ## | | ????????????????????????# #?# ## """ """ | | ????????????????????????########?# [ ] ## """ """ | | ?????????????????????????????????######### """ """ | | ?????????????????????????????????????????# | | ?????????????????????????????????????????# | ! | | ?????????????????????????????????????????######### | | | +----------------------------------------------------+ Best States ------------- Heat Dissipation 31 Energy Generation 10 Energy Capacity 250 Matter Stores 300 Matter Capacity 300 Sight Range 16 Terrain Scan Density 10 ECM Strength 1 Power Shielding 33 Evasion (%) 63 Recoil Reduction 1 Item Schematics ----------------- Assault Rifle | -9/Materials | Scanalyzed Flight Unit | -9/Materials | Scanalyzed Robot Schematics ------------------ None Fabricated ------------ Nothing Alien Tech Used ----------------- None Achievements -------------- None Challenges ------------ None Game ------ Seed BraceMetafieldScythe Manual? 0 Play Time 00:31:16 Cumulative 12.8 hours Start 2025.03.26 @ 20:23:34 End 2025.03.26 @ 21:14:44 Sessions 1 Manual Loads 0 Difficulty Rogue Special Mode None Game No. 15 Rogue 15 Adventurer 0 Explorer 0 Win Type - Total 0 Types 0/0/0/0/0/0/0/0/0 Lore% 9 Gallery% 17 Achievement% 14 Wizard Run 0 Options --------- Layout 0 ASCII 0 Keyboard 1 Movement Vi Keybinds 0 Fullscreen 2 Font 24/Terminus Map View 76x50 Zoom Use 0% Tactical HUD 1 Map Filters NONE Filters NONE Steam 1 RUN: 2278b016-19d5-4118-b3fa-5a9057b9e98e